Cogmind - Beta 15 @@@ ROGUE MODE // 2025.08.12 @ 22:40:39 Player: WitherScout Result: Destroyed by S-27 Virus with Autogun Performance ------------- Evolutions (5) 2500 Regions Visited (9) 1800 Robots Destroyed (41) 205 Value Destroyed (1352) 1352 Prototype IDs (2) 40 Alien Tech Used (0) 0 Bonus (299) 299 TOTAL SCORE: 6196 Bonus ------- Pacifist 200 High Alert Combat Kills 22 Follower Combat Kills 151 Friendly Fire -74 Cogmind --------- Core Integrity 0/1000 Matter 276/300 Energy 99/100 System Corruption 0% Temperature Cool (0) Movement Core (50) Location -5/Factory Parts ------- > --- POWER (2) -------- (None) > --- PROPULSION (5) --- (None) > --- UTILITY (7) ------ (None) > --- WEAPON (3) ------- (None) > --- INVENTORY (5) ---- Light Ion Engine Antimatter Reactor Power Amplifier Advanced Cooling System System Shield Peak State ------------ > --- POWER ------------ Light Nuclear Core Antimatter Reactor > --- PROPULSION ------- VTOL Module VTOL Module Improved Flight Unit Cesium-ion Thruster Xenon Bombardment Thruster > --- UTILITY ---------- Advanced Cooling System Advanced Weight Redist. System Salvage Targeting Computer ECM Suite Hacking Suite Hacking Suite System Restoration Module > --- WEAPON ----------- Backup Laser III Backup Laser III > --- INVENTORY -------- Light Ion Engine Advanced Cooling System System Shield [Rating: 53] Favorites ----------- Power Light Nuclear Core Engine Light Ion Engine Power Core Light Nuclear Core Reactor Antimatter Reactor Propulsion Flight Unit Flight Unit Flight Unit Utility Salvage Targeting Computer Device ECM Suite Processor Salvage Targeting Computer Hackware Hacking Suite Protection Improved Propulsion Shielding Weapon Mini Grenade Launcher Energy Gun Backup Laser III Ballistic Gun Assault Rifle Launcher Mini Grenade Launcher Build | -11 -10 -9 -9 -8 -7 -7 -7 -6 -5 ------- Run | Yrd Mat Mat Sto Mat Fac Was Fac Fac Fac Slots Evolved 10 | . . 2 . 2 2 . . 2 2 Power 1 | . . . . . 1 . . . . Propulsion 3 | . . 1 . 1 1 . . . . Utility 5 | . . 1 . . . . . 2 2 Weapon 1 | . . . . 1 . . . . . Parts Attached 37 | 1 1 1 8 9 9 2 3 2 1 Power 8 | . . . 2 3 2 1 . . . Engine 3 | . . . 2 1 . . . . . Core 4 | . . . . 2 2 . . . . Reactor 1 | . . . . . . 1 . . . Propulsion 11 | . . . 2 2 4 1 2 . . Treads . | . . . . . . . . . . Leg . | . . . . . . . . . . Wheel . | . . . . . . . . . . Hover . | . . . . . . . . . . Flight 11 | . . . 2 2 4 1 2 . . Utility 10 | . . 1 1 1 3 . 1 2 1 Device 6 | . . . 1 1 2 . 1 . 1 Storage . | . . . . . . . . . . Processor 1 | . . 1 . . . . . . . Hackware 2 | . . . . . . . . 2 . Protection 1 | . . . . . 1 . . . . Artifact . | . . . . . . . . . . Weapon 8 | 1 1 . 3 3 . . . . . Energy Gun . | . . . . . . . . . . Energy Cannon . | . . . . . . . . . . Ballistic Gun 2 | 1 1 . . . . . . . . Ballistic Cannon . | . . . . . . . . . . Launcher 6 | . . . 3 3 . . . . . Special Weapon . | . . . . . . . . . . Impact Weapon . | . . . . . . . . . . Slashing Weapon . | . . . . . . . . . . Piercing Weapon . | . . . . . . . . . . Special Melee Weapon . | . . . . . . . . . . Unidentified Prototypes 2 | . . . 1 1 . . . . . Parts Lost 28 | . . . 1 4 7 . 1 . 15 Power 4 | . . . . 1 2 . . . 1 Propulsion 10 | . . . . 2 2 . 1 . 5 Utility 7 | . . . . . . . . . 7 Weapon 7 | . . . 1 1 3 . . . 2 Highest Loss Streak 15 | . . . 1 3 2 . 1 . 15 To Critical Strikes . | . . . . . . . . . . Average Backups 4 | 2 4 5 4 2 4 3 4 2 3 Power 1 | 1 2 2 1 1 1 . 1 1 1 Propulsion . | . . . . . . . . . . Utility 2 | . 1 2 . 1 3 3 3 1 2 Weapon . | . . 1 1 . . . . . . Tool/Special . | . . . . . . . . . . Unused Backups 9 | . 2 . 1 . 3 . . . 3 Power 3 | . 2 . . . 1 . . . . Propulsion . | . . . . . . . . . . Utility 5 | . . . 1 . 1 . . . 3 Weapon 1 | . . . . . 1 . . . . Tool/Special . | . . . . . . . . . . Average Slot Usage (%) 71 | . 28 30 43 97 85 72 89 91 63 Engine 1 | . . . . 3 1 6 . 4 . Core 5 | . . . . 5 12 7 7 1 2 Flight 20 | . . . . 34 27 28 35 33 18 Device 13 | . . . 10 17 15 15 15 13 15 Processor 8 | . . 8 11 9 7 7 7 6 3 Energy Gun 1 | . . . . . . 4 15 13 7 Ballistic Gun 2 | . 28 22 1 . . . . . . Launcher 15 | . . . 20 26 19 . . . . Peak Build Rating 53 | 1 2 4 10 23 32 38 44 45 53 Average Rating 20 | . 1 3 5 21 26 27 40 42 34 On Entrance 17 | . 1 2 4 10 20 19 38 39 43 Naked Turns 28 | . . . . . . . . . 28 Heaviest Build 30 | 2 3 3 7 12 22 27 27 24 30 Greatest Support 36 | 3 3 3 8 27 28 31 36 33 33 Greatest Overweight (x) 1 | . . . 1 . 1 . . . . Average Overweight (x) . | . . . . . . . . . . Largest Inventory Capacity 5 | 5 5 5 5 5 5 5 5 5 5 Average Capacity 5 | 5 5 5 5 5 5 5 5 5 5 Most Carried 5 | 4 5 5 5 5 5 4 5 3 5 Average Carried 4 | 2 4 5 4 2 4 3 4 2 3 Final Capacity 5 | 5 5 5 5 5 5 5 5 5 5 Final Carried 5 | 4 5 5 3 5 4 4 4 2 5 Class Distribution -------------------- 56% | Sprinter 38% | Mutant 4% | Hacker-Sprinter Dominant Class ---------------- Mutant | -10/Materials Mutant | -9/Materials Mutant | -9/Storage Sprinter | -8/Materials Sprinter | -7/Factory Sprinter | -7/Waste Sprinter | -7/Factory Hacker-Sprinter | -6/Factory Hacker-Sprinter | -5/Factory Resources | -11 -10 -9 -9 -8 -7 -7 -7 -6 -5 ----------- Run | Yrd Mat Mat Sto Mat Fac Was Fac Fac Fac Matter Collected 1120 | 210 . . 267 169 89 312 57 . 16 Remotely . | . . . . . . . . . . Salvage Created 1101 | . . . 449 280 146 226 . . . Parts 56 | . . . 30 14 6 6 . . . Haulers Intercepted . | . . . . . . . . . . Recyclers Shooed . | . . . . . . . . . . Parts Field Recycled 23 | . . . . . 23 . . . . Retrieved Matter 176 | . . . . . 176 . . . . Parts Self-Destructed . | . . . . . . . . . . Prevented . | . . . . . . . . . . Kills | -11 -10 -9 -9 -8 -7 -7 -7 -6 -5 ------- Run | Yrd Mat Mat Sto Mat Fac Was Fac Fac Fac Combat Hostiles Destroyed 35 | . . . 14 16 5 . . . . AOE 35 | . . . 14 16 5 . . . . Classes Destroyed 8 | . . . 7 1 . . . . . Worker 1 | . . . . 1 . . . . . Builder 1 | . . . 1 . . . . . . Recycler 2 | . . . 2 . . . . . . Mechanic 2 | . . . 2 . . . . . . Swarmer 10 | . . . 4 4 2 . . . . Grunt 20 | . . . 7 10 3 . . . . Brawler 1 | . . . 1 . . . . . . Sentry 4 | . . . 2 2 . . . . . Best Kill Streak 9 | . . . 8 9 3 . . . . Combat Bots Only 9 | . . . 5 9 3 . . . . Max Kills in Single Turn 5 | . . . 5 4 3 . . . . Gunslinging . | . . . . . . . . . . Exploded 4 | . . . 3 4 3 . . . . Melee . | . . . . . . . . . . Uniques/NPCs Destroyed . | . . . . . . . . . . Combat | -11 -10 -9 -9 -8 -7 -7 -7 -6 -5 -------- Run | Yrd Mat Mat Sto Mat Fac Was Fac Fac Fac Hostile Shots Fired 253 | . . 8 13 32 55 . 9 . 136 Missed 130 | . . 4 8 18 30 . 6 . 64 Hits 123 | . . 4 5 14 25 . 3 . 72 Projectile 123 | . . 4 5 14 25 . 3 . 72 Critical Strikes 2 | . . . . 1 . . . . 1 Damage Taken 2448 | . . 39 170 285 427 . 28 . 1499 Core 1226 | . . 1 77 38 101 . . . 1009 Absorbed by Shields . | . . . . . . . . . . Regen/Repaired (Parts) 21 | . . . . . . 21 . . . Core Remaining (%) 93 | 100 100 . 80 93 . . 85 100 . Volleys Fired 42 | . 1 . 14 14 4 6 . . 3 Largest 3 | . 2 . 2 3 3 2 . . 2 Hottest 90 | . 40 . 60 90 90 80 . . 80 Shots Fired 80 | . 2 . 26 28 6 12 . . 6 Gun 20 | . 2 . . . . 12 . . 6 Cannon . | . . . . . . . . . . Launcher 60 | . . . 26 28 6 . . . . Special . | . . . . . . . . . . Kinetic 2 | . 2 . . . . . . . . Thermal 18 | . . . . . . 12 . . 6 Explosive 60 | . . . 26 28 6 . . . . Electromagnetic . | . . . . . . . . . . Robot Hit Streak 12 | . . . 12 6 1 8 . . 1 Robot Miss Streak 3 | . 2 . 2 2 1 1 . . 3 Penetration Max . | . . . . . . . . . . Secondary Targets . | . . . . . . . . . . Shots Hit Robots 45 | . . . 19 15 2 8 . . 1 Core Hits 100 | . . . 49 37 10 3 . . 1 Critical Kills . | . . . . . . . . . . Critical Parts Destroyed . | . . . . . . . . . . Critical Strikes . | . . . . . . . . . . Melee Attacks . | . . . . . . . . . . Impact . | . . . . . . . . . . Slashing . | . . . . . . . . . . Piercing . | . . . . . . . . . . Sneak Attacks . | . . . . . . . . . . Combat Hostiles . | . . . . . . . . . . Follow-up Attacks . | . . . . . . . . . . Damage Inflicted 3567 | . . 11 1612 1471 342 119 . . 12 Guns 131 | . . . . . . 119 . . 12 Cannons . | . . . . . . . . . . Explosions 3425 | . . . 1612 1471 342 . . . . Melee . | . . . . . . . . . . Ramming 11 | . . 11 . . . . . . . Kinetic . | . . . . . . . . . . Thermal 131 | . . . . . . 119 . . 12 Explosive 3425 | . . . 1612 1471 342 . . . . Electromagnetic . | . . . . . . . . . . Impact . | . . . . . . . . . . Slashing . | . . . . . . . . . . Piercing . | . . . . . . . . . . Highest Corruption 2 | . . . . . 2 2 2 . . Average Corruption 1 | . . . . . 1 2 2 . . Corruption Purged . | . . . . . . . . . . Corruption Blocked . | . . . . . . . . . . Effects 7 | . . . . . 3 2 2 . . Message Errors 2 | . . . . . 2 . . . . Matter Fused 1 | . . . . . . . 1 . . Energy Discharges 3 | . . . . . . 2 1 . . Parts Rejected 1 | . . . . . 1 . . . . Overload Shots . | . . . . . . . . . . Overflow Damage 59 | . . . 52 7 . . . . . Projectiles . | . . . . . . . . . . Explosions 59 | . . . 52 7 . . . . . Melee . | . . . . . . . . . . Knockbacks . | . . . . . . . . . . Impact . | . . . . . . . . . . Kinetic . | . . . . . . . . . . Secondary . | . . . . . . . . . . Self-Inflicted Damage 209 | . . 5 79 65 60 . . . . Shots 6 | . . . 2 2 2 . . . . Rammed 5 | . . 5 . . . . . . . Targets Rammed 5 | . . 5 . . . . . . . Kicked . | . . . . . . . . . . Crushed . | . . . . . . . . . . Highest Temperature 347 | . . . 12 74 64 150 347 75 . Average Temperature 57 | . . . 4 32 8 78 113 39 . Received Heat Transfer 366 | . . 12 36 135 54 . 12 . 117 Effects 8 | . . . . . . . 8 . . Energy Bleed 1 | . . . . . . . 1 . . Interference 7 | . . . . . . . 7 . . Siege Activations . | . . . . . . . . . . Martial Activations . | . . . . . . . . . . Shielding Activations . | . . . . . . . . . . Robots Disrupted . | . . . . . . . . . . Combat Hostiles . | . . . . . . . . . . Robots Corrupted . | . . . . . . . . . . Combat Hostiles . | . . . . . . . . . . Parts Fried . | . . . . . . . . . . Impact Corruptions . | . . . . . . . . . . Robots Melted . | . . . . . . . . . . Combat Hostiles . | . . . . . . . . . . Parts Melted . | . . . . . . . . . . Heat Transferred 370 | . . . . . . 333 . . 37 Parts Sabotaged . | . . . . . . . . . . Parts Stolen . | . . . . . . . . . . Parts Stripped . | . . . . . . . . . . Power Chain Reactions . | . . . . . . . . . . Alert | -11 -10 -9 -9 -8 -7 -7 -7 -6 -5 ------- Run | Yrd Mat Mat Sto Mat Fac Was Fac Fac Fac Maximum Alert Level 2 | . . . 2 2 1 . . . . Low Security (%) 69 | 100 100 100 32 26 93 100 100 100 100 Level 1 29 | . . . 65 70 6 . . . . Level 2 . | . . . 1 2 . . . . . Level 3 . | . . . . . . . . . . Level 4 . | . . . . . . . . . . Level 5 . | . . . . . . . . . . High Security . | . . . . . . . . . . Max Security . | . . . . . . . . . . Peak Influence 419 | . . 45 406 419 229 . 50 14 50 Initial 182 | . . . 14 167 182 . . . 1 Average 114 | . . 5 184 231 91 . 13 5 5 Influence Increases 1900 | . . 60 680 670 212 . 114 14 150 Destroy 0b10 Robot/C 860 | . . . 360 320 100 . 80 . . Destroy 0b10 Robot/NC 30 | . . . 25 5 . . . . . Destroy Leader 160 | . . . 70 60 20 . 10 . . Allied During Kill 46 | . . . 37 . . . 9 . . Successful Hack 14 | . . . . . . . . 14 . Disable Machine 120 | . . . 45 60 15 . . . . Destroy Structure 295 | . . . 143 120 32 . . . . Partial Spotted 150 | . . 60 . 30 45 . 15 . . Lose Combat Pursuer 225 | . . . . 75 . . . . 150 Influence Decreases 1860 | . . 25 317 667 613 . 114 10 114 Entered New Map 474 | . . . 21 231 219 . . . 3 Time Decay 986 | . . 25 246 246 364 . 74 10 21 Lost Part 170 | . . . 10 40 30 . . . 90 Lost Ally 80 | . . . 40 . . . 40 . . Purge Threat 150 | . . . . 150 . . . . . Squads Dispatched 17 | . 1 1 2 3 7 . . . 3 Investigation . | . . . . . . . . . . Extermination 3 | . . . . . 3 . . . . Reinforcement 11 | . 1 1 . 2 4 . . . 3 Assault 2 | . . . 2 . . . . . . Garrison 1 | . . . . 1 . . . . . Intercept . | . . . . . . . . . . Searches Triggered . | . . . . . . . . . . Construction Impeded . | . . . . . . . . . . Haulers Reinforced . | . . . . . . . . . . Active Scanning Responses . | . . . . . . . . . . Cargo Convoy Interrupts . | . . . . . . . . . . Stealth | -11 -10 -9 -9 -8 -7 -7 -7 -6 -5 --------- Run | Yrd Mat Mat Sto Mat Fac Was Fac Fac Fac Distress Signals 8 | . . 1 3 3 1 . . . . Communications Jammed . | . . . . . . . . . . Distress Signals . | . . . . . . . . . . Times Spotted 130 | . 1 8 24 29 33 . 7 . 28 Peak Tracking Total 19 | . 1 6 6 11 6 . 4 . 19 Tactical Retreats 13 | . . . 3 2 4 . 1 . 3 Traps | -11 -10 -9 -9 -8 -7 -7 -7 -6 -5 ------- Run | Yrd Mat Mat Sto Mat Fac Was Fac Fac Fac Traps Triggered 6 | . 1 . 1 . 2 . 1 . 1 Indirectly . | . . . . . . . . . . Trap Hack Attempts . | . . . . . . . . . . Triggered . | . . . . . . . . . . Disarmed . | . . . . . . . . . . Reprogrammed . | . . . . . . . . . . Reused . | . . . . . . . . . . Traps Extracted . | . . . . . . . . . . Installed . | . . . . . . . . . . Triggered . | . . . . . . . . . . Machines | -11 -10 -9 -9 -8 -7 -7 -7 -6 -5 ---------- Run | Yrd Mat Mat Sto Mat Fac Was Fac Fac Fac Machines Disabled 8 | . . . 3 4 1 . . . . Max in Single Turn 1 | . . . 1 1 1 . . . . Machines Repaired . | . . . . . . . . . . Machines Dismantled . | . . . . . . . . . . Machines Sabotaged . | . . . . . . . . . . Overloaded Fab Kills . | . . . . . . . . . . Hacking | -11 -10 -9 -9 -8 -7 -7 -7 -6 -5 --------- Run | Yrd Mat Mat Sto Mat Fac Was Fac Fac Fac Machines Accessed 14 | . 1 1 2 2 3 . 2 1 2 Terminals 10 | . 1 1 2 1 2 . 1 1 1 Fabricators 1 | . . . . . 1 . . . . Repair Stations . | . . . . . . . . . . Recycling Units . | . . . . . . . . . . Scanalyzers 1 | . . . . 1 . . . . . Garrison Access 2 | . . . . . . . 1 . 1 Total Hacks 28 | . 6 1 4 5 3 . 3 3 3 Successful 9 | . 1 . 2 3 . . 1 1 1 Failed 19 | . 5 1 2 2 3 . 2 2 2 Catastrophic 4 | . . 1 . . 1 . 1 1 . Database Lockouts . | . . . . . . . . . . Manual 12 | . 4 1 2 2 . . 1 2 . Terminals 21 | . 6 1 4 2 2 . 2 3 1 Fabricators 1 | . . . . . 1 . . . . Repair Stations . | . . . . . . . . . . Recycling Units . | . . . . . . . . . . Scanalyzers 3 | . . . . 3 . . . . . Garrison Access 3 | . . . . . . . 1 . 2 Terminal Hacks 7 | . 1 . 2 1 . . 1 1 1 Record 1 | . . . . . . . . . 1 Open Door 1 | . . . 1 . . . . . . Level Access Points 1 | . . . . . . . . 1 . Branch Access Points 1 | . 1 . . . . . . . . Unreport Threat 1 | . . . . 1 . . . . . Locate Traps 1 | . . . 1 . . . . . . Zone Layout 1 | . . . . . . . 1 . . Fabricator Hacks . | . . . . . . . . . . Repair Station Hacks . | . . . . . . . . . . Recycling Unit Hacks . | . . . . . . . . . . Scanalyzer 2 | . . . . 2 . . . . . Insert Component 1 | . . . . 1 . . . . . Analyze 1 | . . . . 1 . . . . . Garrison Access Hacks . | . . . . . . . . . . Unauthorized Hacks . | . . . . . . . . . . Terminals . | . . . . . . . . . . Fabricators . | . . . . . . . . . . Repair Stations . | . . . . . . . . . . Recycling Units . | . . . . . . . . . . Scanalyzers . | . . . . . . . . . . Garrison Access . | . . . . . . . . . . Data Cores Recovered . | . . . . . . . . . . Used . | . . . . . . . . . . Hacking Detections 12 | . 1 1 1 1 3 . 2 1 2 Full Trace Events . | . . . . . . . . . . Feedback Events . | . . . . . . . . . . Feedback Blocked . | . . . . . . . . . . Robot Schematics Acquired . | . . . . . . . . . . Robots Built . | . . . . . . . . . . Authchips . | . . . . . . . . . . Time . | . . . . . . . . . . Total Robot Build Rating . | . . . . . . . . . . Part Schematics Acquired 1 | . . . . 1 . . . . . Parts Built . | . . . . . . . . . . Authchips . | . . . . . . . . . . Time . | . . . . . . . . . . Total Part Build Rating . | . . . . . . . . . . Parts Repaired . | . . . . . . . . . . Time . | . . . . . . . . . . Parts Recycled . | . . . . . . . . . . Recycled Matter . | . . . . . . . . . . Retrieved Matter . | . . . . . . . . . . Retrieved Components . | . . . . . . . . . . Parts Scanalyzed 1 | . . . . 1 . . . . . Part Schematics Acquired 1 | . . . . 1 . . . . . Parts Damaged . | . . . . . . . . . . Bothacking | -11 -10 -9 -9 -8 -7 -7 -7 -6 -5 ------------ Run | Yrd Mat Mat Sto Mat Fac Was Fac Fac Fac Used RIF Installer . | . . . . . . . . . . Robots Hacked . | . . . . . . . . . . Non-combat . | . . . . . . . . . . Combat . | . . . . . . . . . . Robot Hacks Applied . | . . . . . . . . . . Relay Couplers Released . | . . . . . . . . . . Fabnet Peak Effective % . | . . . . . . . . . . Robots Rewired . | . . . . . . . . . . Allies Hacked . | . . . . . . . . . . Hacks Repelled . | . . . . . . . . . . Allies | -11 -10 -9 -9 -8 -7 -7 -7 -6 -5 -------- Run | Yrd Mat Mat Sto Mat Fac Was Fac Fac Fac Total Allies 22 | . . . 2 . . 20 . . . Largest Group 20 | . . . 2 . . 20 5 . . Highest-Rated Group 528 | . . . 62 . . 528 70 . . Highest-Rated Ally 35 | . . . 31 . . 35 14 . . Total Orders . | . . . . . . . . . . Ally Attacks 67 | . . . 28 . . . 39 . . Total Damage 780 | . . . 337 . . . 443 . . Kills 8 | . . . 4 . . . 4 . . Allies Corrupted 1 | . . . . . . . 1 . . Allies Melted . | . . . . . . . . . . Intel | -11 -10 -9 -9 -8 -7 -7 -7 -6 -5 ------- Run | Yrd Mat Mat Sto Mat Fac Was Fac Fac Fac Active Infowar (turns) 2036 | . . . 648 4 973 190 140 . 81 ECM 2036 | . . . 648 4 973 190 140 . 81 Robot Analysis Total . | . . . . . . . . . . Derelict Logs Recovered . | . . . . . . . . . . Drone Launches . | . . . . . . . . . . Drone Recoveries . | . . . . . . . . . . Exploration | -11 -10 -9 -9 -8 -7 -7 -7 -6 -5 ------------- Run | Yrd Mat Mat Sto Mat Fac Was Fac Fac Fac Turns Passed 3202 | 21 80 183 769 532 1047 190 218 34 128 Spaces Moved 4587 | 31 109 223 356 568 2040 219 627 109 305 Core 761 | 31 109 223 339 . . . . . 59 Treads . | . . . . . . . . . . Legs . | . . . . . . . . . . Wheels . | . . . . . . . . . . Hover . | . . . . . . . . . . Flight 3826 | . . . 17 568 2040 219 627 109 246 Fastest Speed 25 | 50 50 50 37 29 28 31 25 25 25 Average Speed 36 | 50 50 50 92 30 31 31 27 25 31 Slowest Speed 120 | 50 50 50 120 37 105 32 31 25 50 Overloaded Moves . | . . . . . . . . . . Propulsion Burnouts . | . . . . . . . . . . Robots Hopped 40 | . . . . 9 17 . 11 . 3 Potential Cave-ins . | . . . . . . . . . . Cave-ins Triggered . | . . . . . . . . . . Exploration Rate (%) 30 | 3 26 19 44 44 48 86 21 4 14 Regions Visited 9 Branch Regions 1 Pre-discovered Areas . | . . . . . . . . . . Known Exits Taken 1 | . . . . . . . . 1 . Unknown Exits Taken 6 | 1 1 1 1 1 . . 1 . . Scrap Searched . | . . . . . . . . . . Spaces Dug . | . . . . . . . . . . Terrain Destroyed 340 | . . . 162 144 34 . . . . Melee . | . . . . . . . . . . Projectile . | . . . . . . . . . . AOE 340 | . . . 162 144 34 . . . . Terrain Rammed . | . . . . . . . . . . Walls Destroyed . | . . . . . . . . . . Machines Disabled . | . . . . . . . . . . Actions | -11 -10 -9 -9 -8 -7 -7 -7 -6 -5 --------- Run | Yrd Mat Mat Sto Mat Fac Was Fac Fac Fac Total 5972 | 35 133 293 770 890 2430 326 655 113 327 Wait 1265 | . 13 65 369 304 370 99 32 . 13 Move 4499 | 30 108 222 355 549 2006 218 604 108 299 Hop 40 | . . . . 9 17 . 11 . 3 Pick Up 26 | 4 5 . 4 2 8 . . . 3 Fast Attach 24 | 1 2 1 4 5 6 1 3 . 1 Attach 17 | . 1 . 4 3 3 1 2 2 1 Detach 5 | . . . . 2 1 . 1 . 1 Swap 16 | . . . . 2 5 1 2 3 3 Drop 18 | . 3 . 5 . 10 . . . . Fire 42 | . 1 . 14 14 4 6 . . 3 Melee . | . . . . . . . . . . Ram 5 | . . 5 . . . . . . . Kick . | . . . . . . . . . . Crush . | . . . . . . . . . . Escape Stasis 15 | . . . 15 . . . . . . Rewire . | . . . . . . . . . . Trap . | . . . . . . . . . . Miscellaneous . | . . . . . . . . . . Route ------- -11/Scrapyard -10/Materials (discovered 2 exits: *Mat / Min) -9/Materials -9/Storage -8/Materials -7/Factory -7/Waste -7/Factory -6/Factory (discovered 4 exits: *Fac x4) -5/Factory History --------- Turn | Location | Event 10 | -11/Scrapyard | Discovered new exit (range 16) 22 | -11/Scrapyard | Entered Materials 75 | -10/Materials | Identified exit to Mines 101 | -10/Materials | Discovered new exit (range 3) 102 | -10/Materials | Entered another Materials area 102 | -9/Materials | Evolved 2 slots: Propulsion x1, Utility x1 240 | -9/Materials | Discovered new exit (range 9) 285 | -9/Materials | Entered Storage 310 | -9/Storage | Build established: Mutant 313 | -9/Storage | Met a pair of Derelict thieves 1046 | -9/Storage | Discovered new exit (range 11) 1054 | -9/Storage | Entered Materials 1054 | -8/Materials | Evolved 2 slots: Propulsion x1, Weapon x1 1394 | -8/Materials | Build established: Sprinter 1565 | -8/Materials | Garrison activated, responded to threat 1581 | -8/Materials | Discovered new exit (range 16) 1586 | -8/Materials | Entered Factory 1586 | -7/Factory | Evolved 2 slots: Power x1, Propulsion x1 1593 | -7/Factory | Destroyed 9 combat bots 1613 | -7/Factory | Lost 3 parts (2n1w) 2631 | -7/Factory | Discovered new exit (range 15) 2633 | -7/Factory | Sucked down chute 2633 | -7/Factory | Entered Waste 2634 | -7/Waste | Joined by Warlord forces that had cleared the area 2819 | -7/Waste | Discovered new exit (range 13) 2823 | -7/Waste | Entered Factory 2823 | -7/Factory | Accompanied by 5 allies 3037 | -7/Factory | Discovered new exit (range 16) 3041 | -7/Factory | Entered another Factory area 3041 | -6/Factory | Evolved 2 slots: Utility x2 3052 | -6/Factory | Identified exit to Factory 3075 | -6/Factory | Entered another Factory area 3075 | -5/Factory | Evolved 2 slots: Utility x2 3170 | -5/Factory | Core integrity fell below 50% 3180 | -5/Factory | Core integrity fell below 20% 3199 | -5/Factory | Spotted B-75 Beast 3203 | -5/Factory | Destroyed by S-27 Virus with Autogun Last Messages --------------- S-27 Virus destroyed. U-05 Engineer builds a Wall. Penetrated by Slug. Adv. Cooling System destroyed. K-01 Serf collects debris. Slug penetrates U-05 Engineer. U-05 Engineer suffers critical hit (Blast). U-05 Engineer destroyed. Acquired 6 matter. Imp. Flight Unit destroyed. Slug penetrates H-71 Marshal. Hacking Suite destroyed. Penetrated by Slug. Salvage Targeting Computer destroyed. K-01 Serf collects debris. Knocked back. Triggered Blade Trap. Massive razor-sharp blades shoot up from within the floor. Recycling Unit disabled. Map ----- +----------------------------------------------------+ | ???????????????????????????????????????????? | | ???????????????????????????????????????????? | | ???????????????????????????????????????????? | | ???????????????????????????????????????????? | | ???????????????????????????????????????????? | | ???????????????????????????????????????????? | | ???????????????????????????????????????????? | | ???????????????????????????????????????????? | | ???????????????????????????????????????????? | | ???????????????????????????????????????????? | | ???????????????????????????????????????????? | | ???????????????????????????????????????????? | | ???????????????????????????????????????????? | | ???????????????????????????????????????????? | | ???????????????????????????????????????????? | | ???????????????????????????????????????????? | | ???????????????????????????????????????????? | | ??????????????????????????????????????"""""? | | ????????????????????????????????????? """""" | | ????????????????????????????????????? """""" | | ?????????????????????????????????????? | | ?????????????????????????????????????? | | ????????????????######????????????????# | | ????????????????#""""####?????????????# | | ???????????######"F "##;############### | | ???????????# @ | | ???????????# | | ???????????# """ | | ???????????# "Y" | | ???????????# ^ " | | ???????????# | | ???????????# ^ | | ???????????#### ############### | | ??????????????# #?????????????# | | ??????????????# #?????????????# | | ??????????????# #?????????????# | | ??????????????# #?????????????# | | ??????????????# +?????????##### | | ??????????????# #?????????+ | | ??????????????# #?????????## ! | | ??????????????# ## # ###??????????# !! " | | ??????????????# ?# # ?????????????# !! | | ??????????????#??#### ?????????????# " | | ????????????????????# ????????###### | | ????????????????????#?????? | | ??????????????????????????????######### | | ??????????????????????????????????????# | | ??????????????????????????????????????# | | ??????????????????????????????????????# | | ??????????????????????????????????????# | +----------------------------------------------------+ Best States ------------- Heat Dissipation 71 Energy Generation 30 Energy Capacity 385 Matter Stores 300 Matter Capacity 300 Sight Range 16 Terrain Scan Density 10 ECM Strength 1 Additional Mass Support 9 Evasion (%) 65 Salvage Targeting 1 Offensive Hacking 20 Item Schematics ----------------- Cesium-ion Thruster | -8/Materials | Scanalyzed Robot Schematics ------------------ None Fabricated ------------ Nothing Repaired ---------- Nothing Alien Tech Used ----------------- None Achievements -------------- None Challenges ------------ None Game ------ Seed HoverGreatProtection Manual? 0 Play Time 01:12:27 Cumulative 14.3 hours Start 2025.08.12 @ 21:23:19 End 2025.08.12 @ 22:40:39 Sessions 1 Manual Loads 0 Difficulty Rogue Special Mode None Game No. 27 Rogue 27 Adventurer 0 Explorer 0 Win Type - Total 0 Types 0/0/0/0/0/0/0/0/0/0 Lore% 3 Gallery% 16 Achievement% 18 Wizard Run 0 Options --------- Layout 1 ASCII 1 Keyboard 0 Movement Numpad Keybinds 0 Fullscreen 1 Font 24/Cog Map View 50x35 Zoom Use 0% Tactical HUD 0 Map Filters NONE Filters NONE Steam 0 RUN: 7c08225a-f1d3-4075-b7ad-12b402a69e3a